lending/lending_fUSD_20240112
["ID","MTS","AMOUNT","RATE_DAILY","PERIOD"]
[311414423,1705078279858,-500.0,0.0003726,4]
[311414424,1705078279868,-500.0,0.0003726,4]
[311414425,1705078279879,-500.0,0.0003726,4]
[311414426,1705078279889,-172.72,0.0003726,4]
[311414427,1705078279898,-500.0,0.0003726,4]
[311414428,1705078279908,-500.0,0.0003726,4]
[311414429,1705078279919,-500.0,0.0003726,4]
[311414430,1705078279929,-500.0,0.0003726,4]
[311414431,1705078279939,-500.0,0.0003726,4]
[311414432,1705078279950,-500.0,0.0003726,4]
[311414433,1705078279961,-231.91,0.0003726,4]
[311414434,1705078279971,-500.0,0.0003726,4]
[311414435,1705078279982,-500.0,0.0003726,4]
[311414436,1705078279992,-500.0,0.0003726,4]
[311414437,1705078280002,-500.0,0.0003726,4]
[311414438,1705078280013,-505.4,0.0003726,4]
[311414439,1705078280023,-500.0,0.0003726,4]
[311414440,1705078280033,-500.0,0.0003726,4]
[311414441,1705078280044,-500.0,0.0003726,4]
[311414442,1705078280056,-500.0,0.0003726,4]
[311414443,1705078280067,-500.0,0.0003726,4]
[311414444,1705078280077,-199.58,0.0003726,4]
[311414445,1705078280088,-500.0,0.0003726,4]
[311414446,1705078280099,-500.0,0.0003726,4]
[311414447,1705078280110,-931.55,0.0003726,4]
[311414448,1705078280120,-500.0,0.0003726,4]
[311414449,1705078280134,-396.97251771,0.0003726,4]
[311414450,1705078280145,-500.0,0.0003726,4]
[311414451,1705078280155,-1378.86,0.0003726,4]
[311414452,1705078280166,-704.26,0.0003726,4]
[311414453,1705078280176,-500.0,0.0003726,4]
[311414454,1705078280186,-500.0,0.0003726,4]
[311414455,1705078280197,-500.0,0.0003726,4]
[311414456,1705078280208,-1855.35,0.0003726,4]
[311414457,1705078280218,-407.4,0.0003726,4]
[311414458,1705078280229,-500.0,0.0003726,4]
[311414459,1705078280240,-633.89,0.0003726,4]
[311414460,1705078280251,-286.48,0.0003726,4]
[311414461,1705078280262,-500.0,0.0003726,4]
[311414462,1705078280273,-500.0,0.0003726,4]
[311414463,1705078280284,-571.03,0.0003726,4]
[311414464,1705078280295,-500.0,0.0003726,4]
[311414465,1705078280306,-500.0,0.0003726,4]
[311414466,1705078280317,-500.0,0.0003726,4]
[311414467,1705078280328,-500.0,0.0003726,4]
[311414468,1705078280338,-500.0,0.0003726,4]
[311414469,1705078280349,-500.0,0.0003726,4]
[311414470,1705078280359,-500.0,0.0003726,4]
[311414471,1705078280370,-560.62556159,0.0003726,4]
[311414472,1705078280382,-549.38,0.0003726,4]
[311414473,1705078280393,-500.0,0.0003726,4]
[311414474,1705078280404,-500.0,0.0003726,4]
[311414475,1705078280414,-500.0,0.0003726,4]
[311414476,1705078280424,-500.0,0.0003726,4]
[311414477,1705078280434,-500.0,0.0003726,4]
[311414478,1705078280445,-500.0,0.0003726,4]
[311414479,1705078280455,-500.0,0.0003726,4]
[311414480,1705078280467,-500.0,0.0003726,4]
[311414481,1705078280477,-500.0,0.0003726,4]
[311414482,1705078280487,-650.36,0.0003726,4]
[311414483,1705078280497,-500.0,0.0003726,4]
[311414484,1705078280509,-1004.26,0.0003726,4]
[311414485,1705078280519,-644.9,0.0003726,4]
[311414486,1705078280530,-500.0,0.0003726,4]
[311414487,1705078280540,-500.0,0.0003726,4]
[311414488,1705078280551,-500.0,0.0003726,4]
[311414489,1705078280562,-500.0,0.0003726,4]
[311414490,1705078280573,-500.0,0.0003726,4]
[311414491,1705078280584,-500.0,0.0003726,4]
[311414492,1705078280594,-500.0,0.0003726,4]
[311414493,1705078280604,-500.0,0.0003726,4]
[311414494,1705078280614,-1035.58,0.0003726,4]
[311414495,1705078280624,-500.0,0.0003726,4]
[311414496,1705078280634,-343.47487611,0.0003726,4]
[311414497,1705078280644,-500.0,0.0003726,4]
[311414498,1705078280655,-500.0,0.0003726,4]
[311414499,1705078280666,-682.31,0.0003726,4]
[311414500,1705078280677,-500.0,0.0003726,4]
[311414501,1705078280687,-500.0,0.0003726,4]
[311414502,1705078280698,-500.0,0.0003726,4]
[311414503,1705078280707,-655.11,0.0003726,4]
[311414504,1705078280717,-500.0,0.0003726,4]
[311414505,1705078280727,-500.0,0.0003726,4]
[311414506,1705078280737,-622.49,0.0003726,4]
[311414507,1705078280748,-500.0,0.0003726,4]
[311414508,1705078280758,-500.0,0.0003726,4]
[311414509,1705078280768,-500.0,0.0003726,4]
[311414510,1705078280778,-500.0,0.0003726,4]
[311414511,1705078280788,-500.0,0.0003726,4]
[311414512,1705078280798,-500.0,0.0003726,4]
[311414513,1705078280808,-500.0,0.0003726,4]
[311414514,1705078280819,-500.0,0.0003726,4]
[311414515,1705078280830,-941.05,0.0003726,4]
[311414516,1705078280840,-500.0,0.0003726,4]
[311414517,1705078280849,-500.0,0.0003726,4]
[311414518,1705078280858,-532.17,0.0003726,4]
[311414519,1705078280867,-500.0,0.0003726,4]
[311414520,1705078280876,-500.0,0.0003726,4]
[311414521,1705078280886,-1133.84,0.0003726,4]
[311414522,1705078280894,-500.0,0.0003726,4]
[311414523,1705078280903,-500.0,0.0003726,4]
[311414524,1705078280912,-500.0,0.0003726,4]
[311414525,1705078280920,-500.0,0.0003726,4]
[311414526,1705078280929,-500.0,0.0003726,4]
[311414527,1705078280938,-500.0,0.0003726,4]
[311414528,1705078280948,-500.0,0.0003726,4]
[311414529,1705078280958,-500.0,0.0003726,4]
[311414530,1705078280968,-500.0,0.0003726,4]
[311414531,1705078280978,-500.0,0.0003726,4]
[311414532,1705078280988,-2787.39,0.0003726,4]
[311414533,1705078280998,-665.67,0.0003726,4]
[311414534,1705078281009,-500.0,0.0003726,4]
[311414535,1705078281019,-376.85,0.0003726,4]
[311414536,1705078281031,-4677.32,0.0003726,4]
[311414537,1705078281042,-500.0,0.0003726,4]
[311414538,1705078281052,-500.0,0.0003726,4]
[311414539,1705078281062,-1033.68,0.0003726,4]
[311414540,1705078281072,-989.52,0.0003726,4]
[311414541,1705078281082,-500.0,0.0003726,4]
[311414542,1705078281092,-554.11,0.0003726,4]
[311414543,1705078281102,-500.0,0.0003726,4]
[311414544,1705078281112,-500.0,0.0003726,4]
[311414545,1705078281122,-500.0,0.0003726,4]
[311414546,1705078281136,-1450.88,0.0003726,4]
[311414547,1705078281148,-500.0,0.0003726,4]
[311414548,1705078281158,-500.0,0.0003726,4]
[311414549,1705078281168,-500.0,0.0003726,4]
[311414550,1705078281178,-500.0,0.0003726,4]
[311414551,1705078281190,-500.0,0.0003726,4]
[311414552,1705078281200,-986.25,0.0003726,4]
[311414553,1705078281210,-500.0,0.0003726,4]
[311414554,1705078281221,-500.0,0.0003726,4]
[311414555,1705078281232,-500.0,0.0003726,4]
[311414556,1705078281242,-500.0,0.0003726,4]
[311414557,1705078281252,-500.0,0.0003726,4]
[311414558,1705078281262,-500.0,0.0003726,4]
[311414559,1705078281272,-4652.3824648,0.0003726,4]
[311414560,1705078281447,-515.6375352,0.0003726,4]
[311414561,1705078281457,-1229.05,0.0003726,4]
[311414562,1705078281467,-500.0,0.0003726,4]
[311414563,1705078281476,-500.0,0.0003726,4]
[311414564,1705078281486,-719.31,0.0003726,4]
[311414565,1705078281496,-69.89132984,0.0003726,4]
[311414566,1705078281516,-500.0,0.00035616,4]
[311414567,1705078281526,-729.93867016,0.0003726,4]
[311414568,1705078281536,-691.11,0.0003726,4]
[311414569,1705078281546,-500.0,0.0003726,4]
[311414570,1705078281556,-500.0,0.0003726,4]
[311414571,1705078281567,-609.83,0.0003726,4]
[311414572,1705078281576,-500.0,0.0003726,4]
[311414573,1705078281587,-500.0,0.0003726,4]
[311414574,1705078281598,-500.0,0.0003726,4]
[311414575,1705078281608,-500.0,0.0003726,4]
[311414576,1705078281617,-2978.71,0.0003726,4]
[311414577,1705078281627,-500.0,0.0003726,4]
[311414578,1705078281638,-500.0,0.0003726,4]
[311414579,1705078281647,-379.31659821,0.0003726,4]
[311414580,1705078281660,-120.68340179,0.0003726,4]
[311414581,1705078281670,-500.0,0.0003726,4]
[311414582,1705078281681,-500.0,0.0003726,4]
[311414583,1705078281691,-589.54,0.0003726,4]
[311414584,1705078281701,-207.03260067,0.0003726,4]
[311414585,1705078281713,-292.96739933,0.0003726,4]
[311414586,1705078281723,-510.43,0.0003726,4]
[311414587,1705078281733,-500.0,0.0003726,4]
[311414588,1705078281743,-463.96260067,0.0003726,4]
[311414589,1705078281760,-584.52739933,0.0003726,4]
[311414590,1705078281770,-500.0,0.0003726,4]
[311414591,1705078281780,-989.98,0.0003726,4]
[311414592,1705078281790,-317.98,0.0003726,4]
[311414593,1705078281800,-515.37,0.0003726,4]
[311414594,1705078281810,-500.0,0.0003726,4]
[311414595,1705078281820,-778.99,0.0003726,4]
[311414596,1705078281830,-500.0,0.0003726,4]
[311414597,1705078281841,-500.0,0.0003726,4]
[311414598,1705078281852,-500.0,0.0003726,4]
[311414599,1705078281862,-584.22,0.0003726,4]
[311414600,1705078281872,-500.0,0.0003726,4]
[311414601,1705078281883,-500.0,0.0003726,4]
[311414602,1705078281892,-500.0,0.0003726,4]
[311414603,1705078281903,-2071.89,0.0003726,4]
[311414604,1705078281912,-500.0,0.0003726,4]
[311414605,1705078281922,-582.15,0.0003726,4]
[311414606,1705078281931,-500.0,0.0003726,4]
[311414607,1705078281941,-500.0,0.0003726,4]
[311414608,1705078281951,-500.0,0.0003726,4]
[311414609,1705078281961,-1972.66,0.0003726,4]
[311414610,1705078281971,-1209.09,0.0003726,4]
[311414611,1705078281980,-295.78855077,0.0003726,4]
[311414612,1705078281991,-3109.86,0.0003726,4]
[311414613,1705078282001,-173.69,0.0003726,4]
[311414614,1705078282010,-500.0,0.0003726,4]
[311414615,1705078282020,-500.0,0.0003726,4]
[311414616,1705078282030,-500.0,0.0003726,4]
[311414617,1705078282040,-500.0,0.0003726,4]
[311414618,1705078282049,-500.0,0.0003726,4]
[311414619,1705078282059,-1521.97,0.0003726,4]
[311414620,1705078282069,-500.0,0.0003726,4]
[311414621,1705078282078,-612.68,0.0003726,4]
[311414622,1705078282087,-693.43,0.0003726,4]
[311414623,1705078282097,-500.0,0.0003726,4]
[311414624,1705078282107,-500.0,0.0003726,4]
[311414625,1705078282117,-500.0,0.0003726,4]
[311414626,1705078282127,-543.6,0.0003726,4]
[311414627,1705078282136,-500.0,0.0003726,4]
[311414628,1705078282146,-500.0,0.0003726,4]
[311414629,1705078282156,-592.03,0.0003726,4]
[311414630,1705078282165,-603.44,0.0003726,4]
[311414631,1705078282174,-500.0,0.0003726,4]
[311414632,1705078282184,-500.0,0.0003726,4]
[311414633,1705078282193,-500.0,0.0003726,4]
[311414634,1705078282202,-521.55566375,0.0003726,4]
[311414635,1705078282212,-500.0,0.0003726,4]
[311414636,1705078282221,-500.0,0.0003726,5]
[311414637,1705078282231,-556.6,0.0003726,4]
[311414638,1705078282241,-500.0,0.0003726,4]
[311414639,1705078282251,-500.0,0.0003726,4]
[311414640,1705078282260,-500.0,0.0003726,4]
[311414641,1705078282270,-500.0,0.0003726,4]
[311414642,1705078282280,-500.0,0.0003726,4]
[311414643,1705078282290,-218.9,0.000373,7]
[311414644,1705078282299,-162.0,0.000373,7]
[311414645,1705078282308,-160.17216908,0.00037375,7]
[311414646,1705078282318,-155.0,0.00037389,7]
[311414647,1705078282327,-1074.59353457,0.00037391,30]
[311414648,1705078282345,-892.60219643,0.00037391,30]
[311414649,1705078282355,-1288.03035939,0.00037391,120]
[311414650,1705078282390,-21920.7625,0.00037391,120]
[311414651,1705078282405,-254.98,0.0003726,4]
[311414652,1705078282417,-416.97,0.0003726,4]
[311414653,1705078282426,-6713.80916468,0.00037391,120]
[311414654,1705078282437,-1046.84049321,0.00037391,120]
[311414655,1705078282453,-438.80586,0.00037391,120]
[311414656,1705078282464,-362.41630181,0.00037391,120]
[311414657,1705078282597,-53103.32729698,0.00037391,120]
[311414658,1705078282721,250.0,0.00021768,2]
[311414659,1705078282794,-500.0,0.00035616,4]
[311414660,1705078282805,-500.0,0.00035616,4]
[311414661,1705078283018,-500.0,0.00035616,4]
[311414662,1705078283029,-500.0,0.0003589,4]
[311414663,1705078283039,-500.0,0.0003589,4]
[311414664,1705078283049,-500.0,0.00036164,4]
[311414665,1705078283060,-500.0,0.00036164,4]
[311414666,1705078283070,-500.0,0.00036438,4]
[311414667,1705078283080,-500.0,0.00036712,4]
[311414668,1705078283090,-204.19,0.00036986,4]
[311414669,1705078283100,-3248.50683485,0.00037391,120]
[311414670,1705078283117,-489.47653646,0.0003589,4]
[311414671,1705078283137,-10.52346354,0.0003589,4]
[311414672,1705078283150,-500.0,0.0003589,4]
[311414673,1705078283160,-174.41351309,0.00037391,120]
[311414674,1705078283176,-590.52212235,0.00037391,120]
[311414675,1705078283188,-1046.7296758,0.00037391,30]
[311414676,1705078283202,-857.1561312,0.00037391,30]
[311414677,1705078283212,-305.136571,0.00037391,30]
[311414678,1705078283222,-155.91333088,0.00037432,7]
[311414679,1705078283233,-153.84,0.00037443,2]
[311414680,1705078283243,-657.26697925,0.000375,2]
[311414681,1705078283252,-1490.0,0.000375,12]
[311414682,1705078283262,-150.0,0.000375,26]
[311414683,1705078283272,-692.69,0.000375,3]
[311414684,1705078283282,-692.69,0.000375,3]
[311414685,1705078283292,-692.69,0.000375,3]
[311414686,1705078283302,-692.69,0.000375,3]
[311414687,1705078283312,-692.69,0.000375,3]
[311414688,1705078283322,-692.69,0.000375,3]
[311414689,1705078283332,-692.69,0.000375,3]
[311414690,1705078283342,-692.69,0.000375,3]
[311414691,1705078283353,-692.69,0.000375,3]
[311414692,1705078283362,-692.69,0.000375,3]
[311414693,1705078283372,-692.69,0.000375,3]
[311414694,1705078283384,-692.69,0.000375,3]
[311414695,1705078283395,-692.69,0.000375,3]
[311414696,1705078283404,-692.69,0.000375,3]
[311414697,1705078283414,-692.69,0.000375,3]
[311414698,1705078283424,-692.69,0.000375,3]
[311414699,1705078283433,-692.69,0.000375,3]
[311414700,1705078283443,-692.69,0.000375,3]
[311414701,1705078283453,-692.69,0.000375,3]
[311414702,1705078283463,-692.69,0.000375,3]
[311414703,1705078283473,-9664.09195048,0.0003751,2]
[311414704,1705078283483,-500.0,0.00037534,4]
[311414705,1705078283493,-809.77,0.00037534,4]
[311414706,1705078283502,-731.98,0.00037534,4]
[311414707,1705078283511,-500.0,0.00037534,4]
[311414708,1705078283521,-500.0,0.00037534,4]
[311414709,1705078283531,-317.43,0.00037534,4]
[311414710,1705078283540,-581.98,0.00037534,4]
[311414711,1705078283550,-367.7,0.00037534,4]
[311414712,1705078283560,-500.0,0.00037534,4]
[311414713,1705078283570,-256.53,0.00037534,4]
[311414714,1705078283579,-500.0,0.00037534,4]
[311414715,1705078283589,-500.0,0.00037534,4]
[311414716,1705078283598,-621.51699337,0.00037534,4]
[311414717,1705078283609,-500.0,0.00037534,4]
[311414718,1705078283618,-500.0,0.00037534,4]
[311414719,1705078283630,-500.0,0.00037534,4]
[311414720,1705078283639,-574.66,0.00037534,4]
[311414721,1705078283648,-617.18,0.00037534,4]
[311414722,1705078283658,-500.0,0.00037534,4]
[311414723,1705078283667,-500.0,0.00037534,4]
[311414724,1705078283676,-347.56796959,0.00037534,4]
[311414725,1705078283686,-595.44229759,0.00037534,4]
[311414726,1705078283696,-500.0,0.00037534,4]
[311414727,1705078283705,-434.01812636,0.00037534,4]
[311414728,1705078283715,-500.0,0.00037534,4]
[311414729,1705078283725,-360.76,0.00037534,4]
[311414730,1705078283735,-500.0,0.00037534,4]
[311414731,1705078283745,-500.0,0.00037534,4]
[311414732,1705078283755,-626.63535967,0.00037534,4]
[311414733,1705078283766,-500.0,0.00037534,4]
[311414734,1705078283776,-500.0,0.00037534,4]
[311414735,1705078283788,-378.35628538,0.00037534,4]
[311414736,1705078283798,-500.0,0.00037534,4]
[311414737,1705078283809,-246.58,0.00037534,4]
[311414738,1705078283819,-258.93,0.00037534,4]
[311414739,1705078283829,-495.12,0.00037534,4]
[311414740,1705078283839,-500.0,0.00037534,4]
[311414741,1705078283849,-567.31,0.00037534,4]
[311414742,1705078283859,-500.0,0.00037534,4]
[311414743,1705078283870,-931.55,0.00037534,4]
[311414744,1705078283883,-500.0,0.00037534,4]
[311414745,1705078283894,-500.0,0.00037534,4]
[311414746,1705078283904,-1378.86,0.00037534,4]
[311414747,1705078283915,-704.26,0.00037534,4]
[311414748,1705078283925,-500.0,0.00037534,4]
[311414749,1705078283935,-500.0,0.00037534,4]
[311414750,1705078283945,-591.18,0.00037534,4]
[311414751,1705078283955,-1855.35,0.00037534,4]
[311414752,1705078283965,-500.0,0.00037534,4]
[311414753,1705078283975,-633.89,0.00037534,4]
[311414754,1705078283985,-500.0,0.00037534,4]
[311414755,1705078283996,-500.0,0.00037534,4]
[311414756,1705078284005,-500.0,0.00037534,4]
[311414757,1705078284016,-500.0,0.00037534,4]
[311414758,1705078284026,-500.0,0.00037534,4]
[311414759,1705078284035,-500.0,0.00037534,4]
[311414760,1705078284045,-500.0,0.00037534,4]
[311414761,1705078284055,-500.0,0.00037534,4]
[311414762,1705078284065,-500.0,0.00037534,4]
[311414763,1705078284074,-549.38,0.00037534,4]
[311414764,1705078284085,-500.0,0.00037534,4]
[311414765,1705078284095,-500.0,0.00037534,4]
[311414766,1705078284104,-500.0,0.00037534,4]
[311414767,1705078284114,-500.0,0.00037534,4]
[311414768,1705078284127,-500.0,0.00037534,4]
[311414769,1705078284140,-418.21521463,0.00037534,4]
[311414770,1705078284150,-500.0,0.00037534,4]
[311414771,1705078284160,-650.36,0.00037534,4]
[311414772,1705078284169,-500.0,0.00037534,4]
[311414773,1705078284180,-1004.26,0.00037534,4]
[311414774,1705078284191,-644.9,0.00037534,4]
[311414775,1705078284201,-500.0,0.00037534,4]
[311414776,1705078284211,-500.0,0.00037534,4]
[311414777,1705078284221,-500.0,0.00037534,4]
[311414778,1705078284230,-500.0,0.00037534,4]
[311414779,1705078284240,-500.0,0.00037534,4]
[311414780,1705078284249,-500.0,0.00037534,4]
[311414781,1705078284258,-500.0,0.00037534,4]
[311414782,1705078284268,-500.0,0.00037534,4]
[311414783,1705078284278,-1035.58,0.00037534,4]
[311414784,1705078284287,-500.0,0.00037534,4]
[311414785,1705078284297,-500.0,0.00037534,4]
[311414786,1705078284307,-682.31,0.00037534,4]
[311414787,1705078284317,-500.0,0.00037534,4]
[311414788,1705078284326,-500.0,0.00037534,4]
[311414789,1705078284335,-500.0,0.00037534,4]
[311414790,1705078284344,-655.11,0.00037534,4]
[311414791,1705078284354,-500.0,0.00037534,4]
[311414792,1705078284364,-500.0,0.00037534,4]
[311414793,1705078284374,-500.0,0.00037534,4]
[311414794,1705078284386,-500.0,0.00037534,4]
[311414795,1705078284396,-500.0,0.00037534,4]
[311414796,1705078284406,-545.86098608,0.00037534,4]
[311414797,1705078284416,-500.0,0.00037534,4]
[311414798,1705078284427,-941.05,0.00037534,4]
[311414799,1705078284437,-500.0,0.00037534,4]
[311414800,1705078284447,-500.0,0.00037534,4]
[311414801,1705078284456,-532.17,0.00037534,4]
[311414802,1705078284466,-500.0,0.00037534,4]
[311414803,1705078284476,-500.0,0.00037534,4]
[311414804,1705078284486,-1133.84,0.00037534,4]
[311414805,1705078284496,-520.93,0.00037534,4]
[311414806,1705078284506,-500.0,0.00037534,4]
[311414807,1705078284516,-500.0,0.00037534,4]
[311414808,1705078284527,-500.0,0.00037534,4]
[311414809,1705078284538,-500.0,0.00037534,4]
[311414810,1705078284549,-500.0,0.00037534,4]
[311414811,1705078284559,-500.0,0.00037534,4]
[311414812,1705078284569,-500.0,0.00037534,4]
[311414813,1705078284579,-500.0,0.00037534,4]
[311414814,1705078284590,-2787.39,0.00037534,4]
[311414815,1705078284601,-665.67,0.00037534,4]
[311414816,1705078284611,-298.65765207,0.00037534,4]
[311414817,1705078284620,-4677.32,0.00037534,4]
[311414818,1705078284632,-500.0,0.00037534,4]
[311414819,1705078284642,-500.0,0.00037534,4]
[311414820,1705078284652,-1033.68,0.00037534,4]
[311414821,1705078284662,-989.52,0.00037534,4]
[311414822,1705078284672,-516.66280689,0.00037534,4]
[311414823,1705078284682,-554.11,0.00037534,4]
[311414824,1705078284695,-500.0,0.00037534,4]
[311414825,1705078284711,-276.3,0.00037534,4]
[311414826,1705078284728,-529.58,0.00037534,4]
[311414827,1705078284742,-1450.88,0.00037534,4]
[311414828,1705078284756,-500.0,0.00037534,4]
[311414829,1705078284771,-500.0,0.00037534,4]
[311414830,1705078284787,-500.0,0.00037534,4]
[311414831,1705078284803,-500.0,0.00037534,4]
[311414832,1705078284817,-627.9,0.00037534,4]
[311414833,1705078284831,-986.25,0.00037534,4]
[311414834,1705078284846,-500.0,0.00037534,4]
[311414835,1705078284862,-500.0,0.00037534,4]
[311414836,1705078284876,-500.0,0.00037534,4]
[311414837,1705078284898,-500.0,0.00037534,4]
[311414838,1705078284911,-553.73,0.00037534,4]
[311414839,1705078284926,-5168.02,0.00037534,4]
[311414840,1705078284941,-1229.05,0.00037534,4]
[311414841,1705078284956,-500.0,0.00037534,4]
[311414842,1705078284969,-500.0,0.00037534,4]
[311414843,1705078284983,-719.31,0.00037534,4]
[311414844,1705078284998,-799.83,0.00037534,4]
[311414845,1705078285013,-691.11,0.00037534,4]
[311414846,1705078285030,-500.0,0.00037534,4]
[311414847,1705078285046,-500.0,0.00037534,4]
[311414848,1705078285058,-609.83,0.00037534,4]
[311414849,1705078285070,-622.89,0.00037534,4]
[311414850,1705078285083,-340.243824,0.00037534,4]
[311414851,1705078285098,-471.05,0.00037534,4]
[311414852,1705078285112,-2978.71,0.00037534,4]
[311414853,1705078285126,-500.0,0.00037534,4]
[311414854,1705078285146,-500.0,0.00037534,4]
[311414855,1705078285159,-500.0,0.00037534,4]
[311414856,1705078285171,-500.0,0.00037534,4]
[311414857,1705078285184,-430.21831288,0.00037534,4]
[311414858,1705078285198,-500.0,0.00037534,4]
[311414859,1705078285211,-589.54,0.00037534,4]
[311414860,1705078285224,-415.79,0.00037534,4]
[311414861,1705078285238,-510.43,0.00037534,4]
[311414862,1705078285251,-500.0,0.00037534,4]
[311414863,1705078285265,-1048.49,0.00037534,4]
[311414864,1705078285279,-500.0,0.00037534,4]
[311414865,1705078285293,-989.98,0.00037534,4]
[311414866,1705078285307,-515.37,0.00037534,4]
[311414867,1705078285320,-625.3,0.00037534,4]
[311414868,1705078285334,-778.99,0.00037534,4]
[311414869,1705078285349,-500.0,0.00037534,4]
[311414870,1705078285365,-500.0,0.00037534,4]
[311414871,1705078285378,-500.0,0.00037534,4]
[311414872,1705078285397,-584.22,0.00037534,4]
[311414873,1705078285412,-500.0,0.00037534,4]
[311414874,1705078285426,-500.0,0.00037534,4]
[311414875,1705078285439,-500.0,0.00037534,4]
[311414876,1705078285450,-2071.89,0.00037534,4]
[311414877,1705078285462,-500.0,0.00037534,4]
[311414878,1705078285475,-500.0,0.00037534,4]
[311414879,1705078285488,-500.0,0.00037534,4]
[311414880,1705078285502,-500.0,0.00037534,4]
[311414881,1705078285515,-1972.66,0.00037534,4]
[311414882,1705078285528,-1209.09,0.00037534,4]
[311414883,1705078285541,-3109.86,0.00037534,4]
[311414884,1705078285554,-500.0,0.00037534,4]
[311414885,1705078285568,-177.56,0.00037534,4]
[311414886,1705078285581,-231.97,0.00037534,4]
[311414887,1705078285594,-519.63,0.00037534,4]
[311414888,1705078285609,-500.0,0.00037534,4]
[311414889,1705078285622,-1521.97,0.00037534,4]
[311414890,1705078285639,-415.07,0.00037534,4]
[311414891,1705078285651,-693.43,0.00037534,4]
[311414892,1705078285665,-500.0,0.00037534,4]
[311414893,1705078285676,-644.46,0.00037534,4]
[311414894,1705078285686,-500.0,0.00037534,4]
[311414895,1705078285695,-500.0,0.00037534,4]
[311414896,1705078285705,-500.0,0.00037534,4]
[311414897,1705078285715,-500.0,0.00037534,4]
[311414898,1705078285725,-500.0,0.00037534,4]
[311414899,1705078285735,-500.0,0.00037534,4]
[311414900,1705078285744,-500.0,0.00037534,4]
[311414901,1705078285754,-500.0,0.00037534,5]
[311414902,1705078285765,-428.66494235,0.00037534,4]
[311414903,1705078285776,-500.0,0.00037534,4]
[311414904,1705078285787,-325.35,0.00037534,4]
[311414905,1705078285797,-500.0,0.00037534,4]
[311414906,1705078285808,-500.0,0.00037534,4]
[311414907,1705078285819,-671.95,0.00037534,4]
[311414908,1705078285828,-160.17216908,0.00037545,7]
[311414909,1705078285838,-403.0,0.000376,2]
[311414910,1705078285848,-617.65468803,0.00037808,4]
[311414911,1705078285859,-809.77,0.00037808,4]
[311414912,1705078285869,-731.98,0.00037808,4]
[311414913,1705078285879,-551.57,0.00037808,4]
[311414914,1705078285893,-500.0,0.00037808,4]
[311414915,1705078285903,-500.0,0.00037808,4]
[311414916,1705078285912,-526.47257968,0.00037808,4]
[311414917,1705078285922,-482.0,0.00037808,4]
[311414918,1705078285933,-500.0,0.00037808,4]
[311414919,1705078285943,-645.8528025,0.00037808,4]
[311414920,1705078285954,-485.96437551,0.00037808,4]
[311414921,1705078285963,-617.18,0.00037808,4]
[311414922,1705078285973,-500.0,0.00037808,4]